[Event "Live Chess"]
[Site "Chess.com"]
[Date "2024.06.01"]
[Round "-"]
[White "cymbalshift"]
[Black "McFim"]
[Result "0-1"]
[WhiteElo "1493"]
[BlackElo "1595"]
[TimeControl "300"]
[EndTime "13:54:24 PDT"]
[Termination "McFim won by resignation"]

1. d4 {[%clk 0:04:57.9]} 1... d5 {[%clk 0:04:58.6]} 2. e4 {[%clk 0:04:56.8]}
2... dxe4 {[%clk 0:04:53.9]} 3. Nc3 {[%clk 0:04:56.1]} 3... Nf6 {[%clk
0:04:52.3]} 4. f3 {[%clk 0:04:55.3]} 4... exf3 {[%clk 0:04:51.1]} 5. Nxf3 {[%clk
0:04:55.2]} 5... Bf5 {[%clk 0:04:48.3]} 6. Ne5 {[%clk 0:04:52.1]} 6... c6 {[%clk
0:04:42.7]} 7. g4 {[%clk 0:04:50]} 7... Bg6 {[%clk 0:04:40.2]} 8. h4 {[%clk
0:04:47.2]} 8... Be4 {[%clk 0:04:34]} 9. Nxe4 {[%clk 0:04:25.4]} 9... Nxe4
{[%clk 0:04:31.9]} 10. Qd3 {[%clk 0:04:21.6]} 10... Nd6 {[%clk 0:04:26.2]} 11.
c4 {[%clk 0:04:05.6]} 11... e6 {[%clk 0:04:23.5]} 12. c5 {[%clk 0:03:55]} 12...
Nb5 {[%clk 0:04:19.5]} 13. Be3 {[%clk 0:03:51.8]} 13... Nd7 {[%clk 0:04:10.8]}
14. Bh3 {[%clk 0:03:20.9]} 14... Nxe5 {[%clk 0:04:06.2]} 0-1

[Event "Live Chess"]
[Site "Chess.com"]
[Date "2024.06.01"]
[Round "-"]
[White "Brooms1989"]
[Black "uselessduffer"]
[Result "0-1"]
[WhiteElo "1122"]
[BlackElo "2371"]
[TimeControl "300"]
[EndTime "13:54:27 PDT"]
[Termination "uselessduffer won by resignation"]

1. e4 {[%clk 0:04:55.9]} 1... g6 {[%clk 0:04:56.7]} 2. d4 {[%clk 0:04:50.1]}
2... Bg7 {[%clk 0:04:54.5]} 3. Nf3 {[%clk 0:04:47.7]} 3... d6 {[%clk 0:04:52.7]}
4. Nc3 {[%clk 0:04:46.5]} 4... a6 {[%clk 0:04:49.2]} 5. Bd3 {[%clk 0:04:43.7]}
5... b5 {[%clk 0:04:43.8]} 6. a3 {[%clk 0:04:41]} 6... Nd7 {[%clk 0:04:42.5]} 7.
O-O {[%clk 0:04:37.9]} 7... c5 {[%clk 0:04:41.5]} 8. Be3 {[%clk 0:04:16.7]} 8...
cxd4 {[%clk 0:04:31.7]} 9. Bxd4 {[%clk 0:04:16.6]} 9... Ngf6 {[%clk 0:04:30.2]}
10. Re1 {[%clk 0:03:58.2]} 10... O-O {[%clk 0:04:03]} 11. Ne2 {[%clk 0:03:45.8]}
11... Bb7 {[%clk 0:03:58.5]} 12. Ng3 {[%clk 0:03:41.8]} 12... Re8 {[%clk
0:03:31.4]} 13. Be3 {[%clk 0:03:19.4]} 13... Ng4 {[%clk 0:03:18.1]} 14. Bc1
{[%clk 0:03:17.1]} 14... Qb6 {[%clk 0:03:02.6]} 15. Qe2 {[%clk 0:03:04.9]} 15...
Nc5 {[%clk 0:02:54.5]} 16. h3 {[%clk 0:02:55.1]} 16... Nxd3 {[%clk 0:02:51.2]}
17. cxd3 {[%clk 0:02:50.1]} 17... Ne5 {[%clk 0:02:47.5]} 18. Nxe5 {[%clk
0:02:44.4]} 18... Bxe5 {[%clk 0:02:47.4]} 19. Kh1 {[%clk 0:02:25]} 19... Rac8
{[%clk 0:02:40.3]} 20. f4 {[%clk 0:02:16.5]} 20... Bg7 {[%clk 0:02:38.4]} 21. f5
{[%clk 0:02:02.9]} 21... Qd4 {[%clk 0:02:30.1]} 22. fxg6 {[%clk 0:01:39.3]}
22... fxg6 {[%clk 0:02:18.9]} 23. Rf1 {[%clk 0:01:30.5]} 23... Rf8 {[%clk
0:02:11.7]} 24. Kh2 {[%clk 0:00:55.4]} 24... Rxf1 {[%clk 0:01:57.2]} 25. Nxf1
{[%clk 0:00:48.7]} 25... d5 {[%clk 0:01:48.6]} 26. Rb1 {[%clk 0:00:41.3]} 26...
dxe4 {[%clk 0:01:45.5]} 27. dxe4 {[%clk 0:00:30.1]} 27... Qxe4 {[%clk
0:01:44.4]} 28. Qxe4 {[%clk 0:00:27]} 28... Bxe4 {[%clk 0:01:44.3]} 29. Ra1
{[%clk 0:00:23.9]} 29... Rc2 {[%clk 0:01:40.7]} 30. Ng3 {[%clk 0:00:20.4]} 30...
Rxg2+ {[%clk 0:01:39.2]} 0-1

[Event "Live Chess"]
[Site "Chess.com"]
[Date "2024.06.01"]
[Round "-"]
[White "Pablo_dmp"]
[Black "LL220284LL"]
[Result "0-1"]
[WhiteElo "2008"]
[BlackElo "2554"]
[TimeControl "300"]
[EndTime "13:54:37 PDT"]
[Termination "LL220284LL won by resignation"]

1. e4 {[%clk 0:04:59.6]} 1... c6 {[%clk 0:04:49.4]} 2. d4 {[%clk 0:04:58.4]}
2... g6 {[%clk 0:04:49.3]} 3. e5 {[%clk 0:04:58.1]} 3... Bg7 {[%clk 0:04:41.5]}
4. Nf3 {[%clk 0:04:57.3]} 4... d6 {[%clk 0:04:32.3]} 5. exd6 {[%clk 0:04:54.4]}
5... exd6 {[%clk 0:04:25.9]} 6. c4 {[%clk 0:04:52.8]} 6... Ne7 {[%clk
0:04:19.6]} 7. Nc3 {[%clk 0:04:50.3]} 7... O-O {[%clk 0:04:16.5]} 8. Be3 {[%clk
0:04:48.2]} 8... Nf5 {[%clk 0:04:13.2]} 9. Bd3 {[%clk 0:04:44.2]} 9... Re8
{[%clk 0:04:08]} 10. Qd2 {[%clk 0:04:29.6]} 10... Nxe3 {[%clk 0:04:05.9]} 11.
fxe3 {[%clk 0:04:29.5]} 11... Bh6 {[%clk 0:04:05.3]} 12. Nd1 {[%clk 0:04:28.1]}
12... Qe7 {[%clk 0:04:02.2]} 13. Kf2 {[%clk 0:04:07.8]} 13... Nd7 {[%clk
0:03:58.9]} 14. Re1 {[%clk 0:04:03.2]} 14... Nf6 {[%clk 0:03:56.1]} 15. h3
{[%clk 0:04:00.5]} 15... Ne4+ {[%clk 0:03:46.2]} 16. Bxe4 {[%clk 0:03:57.7]}
16... Qxe4 {[%clk 0:03:46.1]} 17. Nc3 {[%clk 0:03:54.5]} 17... Qe7 {[%clk
0:03:43.3]} 18. Qd3 {[%clk 0:03:53]} 18... b6 {[%clk 0:03:36.4]} 19. Rad1 {[%clk
0:03:51.1]} 19... Ba6 {[%clk 0:03:32.8]} 20. b3 {[%clk 0:03:43.1]} 20... d5
{[%clk 0:03:30.8]} 21. Nd2 {[%clk 0:03:34.2]} 21... Rad8 {[%clk 0:03:25.5]} 22.
Qc2 {[%clk 0:03:29.9]} 22... Bxe3+ {[%clk 0:03:20.1]} 23. Kf1 {[%clk 0:03:27.1]}
23... Qf6+ {[%clk 0:03:11.6]} 24. Nf3 {[%clk 0:03:25.9]} 24... dxc4 {[%clk
0:03:10.6]} 25. bxc4 {[%clk 0:03:22.4]} 25... Bxc4+ {[%clk 0:03:09.1]} 26. Ne2
{[%clk 0:03:21.7]} 26... Bd5 {[%clk 0:03:07.3]} 27. Ng3 {[%clk 0:03:18]} 27...
Bxf3 {[%clk 0:03:04.7]} 0-1

[Event "Live Chess"]
[Site "Chess.com"]
[Date "2024.06.01"]
[Round "-"]
[White "grillage"]
[Black "Kyrylo7770"]
[Result "1-0"]
[WhiteElo "1881"]
[BlackElo "1629"]
[TimeControl "300"]
[EndTime "13:54:48 PDT"]
[Termination "grillage won by checkmate"]

1. d4 {[%clk 0:04:57.5]} 1... d5 {[%clk 0:04:59.3]} 2. Nf3 {[%clk 0:04:54.5]}
2... Nf6 {[%clk 0:04:58.3]} 3. c4 {[%clk 0:04:52.7]} 3... Bg4 {[%clk 0:04:57.8]}
4. Ne5 {[%clk 0:04:50.2]} 4... Bh5 {[%clk 0:04:56.3]} 5. Qb3 {[%clk 0:04:42.8]}
5... b6 {[%clk 0:04:55.1]} 6. Bg5 {[%clk 0:04:34.1]} 6... e6 {[%clk 0:04:54.2]}
7. e3 {[%clk 0:04:28.7]} 7... Be7 {[%clk 0:04:53]} 8. Nc3 {[%clk 0:04:26]} 8...
O-O {[%clk 0:04:52.1]} 9. cxd5 {[%clk 0:04:22.2]} 9... Nxd5 {[%clk 0:04:51.3]}
10. Bxe7 {[%clk 0:04:19.7]} 10... Nxe7 {[%clk 0:04:50.4]} 11. Bd3 {[%clk
0:04:15.5]} 11... Bg6 {[%clk 0:04:48.9]} 12. Nxg6 {[%clk 0:04:12.8]} 12... fxg6
{[%clk 0:04:48.1]} 13. O-O {[%clk 0:04:11.3]} 13... Nd5 {[%clk 0:04:46.6]} 14.
Ne4 {[%clk 0:04:07.1]} 14... Qh4 {[%clk 0:04:44.4]} 15. Rac1 {[%clk 0:03:53.3]}
15... c6 {[%clk 0:04:42.6]} 16. Ng3 {[%clk 0:03:46.2]} 16... g5 {[%clk
0:04:38.7]} 17. Ne4 {[%clk 0:03:25.2]} 17... g4 {[%clk 0:04:34.4]} 18. g3 {[%clk
0:03:23.8]} 18... Qh3 {[%clk 0:04:33]} 19. Rfd1 {[%clk 0:03:18.7]} 19... Rf5
{[%clk 0:04:32.2]} 20. Bf1 {[%clk 0:03:16.7]} 20... Qh6 {[%clk 0:04:30.5]} 21.
Bg2 {[%clk 0:02:57.9]} 21... Rh5 {[%clk 0:04:27.6]} 22. Nc3 {[%clk 0:02:43.7]}
22... Rxh2 {[%clk 0:04:05.3]} 23. Nxd5 {[%clk 0:02:42.1]} 23... exd5 {[%clk
0:04:03]} 24. Qd3 {[%clk 0:02:29.5]} 24... Nd7 {[%clk 0:03:55.1]} 25. Qf5 {[%clk
0:02:28.4]} 25... Rf8 {[%clk 0:03:44.4]} 26. Qxd7 {[%clk 0:02:23.4]} 26... Rxg2+
{[%clk 0:03:42.6]} 27. Kxg2 {[%clk 0:02:17.2]} 27... Qh3+ {[%clk 0:03:41.7]} 28.
Kg1 {[%clk 0:02:16.1]} 28... Rf6 {[%clk 0:03:30.1]} 29. Rxc6 {[%clk 0:02:00.5]}
29... Rxc6 {[%clk 0:03:23.7]} 30. Qxc6 {[%clk 0:01:59.1]} 30... Qh5 {[%clk
0:03:17.9]} 31. Rc1 {[%clk 0:01:55.6]} 31... g6 {[%clk 0:03:16.2]} 32. Qd7
{[%clk 0:01:49]} 32... Qg5 {[%clk 0:03:09.1]} 33. Rc8+ {[%clk 0:01:46.5]} 33...
Qd8 {[%clk 0:03:06.1]} 34. Rxd8# {[%clk 0:01:45.7]} 1-0

[Event "Live Chess"]
[Site "Chess.com"]
[Date "2024.06.01"]
[Round "-"]
[White "kingside_rook"]
[Black "Dhaydon19"]
[Result "0-1"]
[WhiteElo "2027"]
[BlackElo "2679"]
[TimeControl "300"]
[EndTime "13:54:53 PDT"]
[Termination "Dhaydon19 won by resignation"]

1. e4 {[%clk 0:04:58.1]} 1... c6 {[%clk 0:04:59.7]} 2. d4 {[%clk 0:04:53.4]}
2... d5 {[%clk 0:04:59.2]} 3. e5 {[%clk 0:04:53.3]} 3... c5 {[%clk 0:04:58.2]}
4. dxc5 {[%clk 0:04:52.6]} 4... Nc6 {[%clk 0:04:57.2]} 5. Nf3 {[%clk 0:04:51.5]}
5... Bg4 {[%clk 0:04:56.2]} 6. Bb5 {[%clk 0:04:44.4]} 6... Bxf3 {[%clk
0:04:55.4]} 7. Qxf3 {[%clk 0:04:43]} 7... e6 {[%clk 0:04:55]} 8. a3 {[%clk
0:04:38]} 8... Bxc5 {[%clk 0:04:53.2]} 9. b4 {[%clk 0:04:36.8]} 9... Bb6 {[%clk
0:04:49.8]} 10. Bb2 {[%clk 0:04:32.1]} 10... Ne7 {[%clk 0:04:48.4]} 11. Qg3
{[%clk 0:04:31.3]} 11... Nf5 {[%clk 0:04:46.7]} 12. Qf4 {[%clk 0:04:27]} 12...
h5 {[%clk 0:04:45.1]} 13. Nd2 {[%clk 0:04:24.8]} 13... a6 {[%clk 0:04:39.5]} 14.
Ba4 {[%clk 0:04:22.9]} 14... g5 {[%clk 0:04:33.6]} 15. Qf3 {[%clk 0:04:17.4]}
15... g4 {[%clk 0:04:32.8]} 16. Qf4 {[%clk 0:04:10.9]} 16... Rg8 {[%clk
0:04:31.2]} 17. Rd1 {[%clk 0:03:55.3]} 17... Qg5 {[%clk 0:04:25.7]} 18. Qxg5
{[%clk 0:03:52.5]} 18... Rxg5 {[%clk 0:04:25.3]} 19. c4 {[%clk 0:03:46.1]} 19...
O-O-O {[%clk 0:04:22.6]} 20. cxd5 {[%clk 0:03:42.5]} 20... Rxd5 {[%clk 0:04:21]}
21. Nc4 {[%clk 0:03:42.1]} 21... Rxd1+ {[%clk 0:04:18]} 22. Kxd1 {[%clk
0:03:42]} 22... Bc7 {[%clk 0:04:17]} 23. Bxc6 {[%clk 0:03:37.9]} 23... bxc6
{[%clk 0:04:14.6]} 24. Bc1 {[%clk 0:03:30.8]} 24... Rg8 {[%clk 0:04:12.7]} 25.
Bf4 {[%clk 0:03:29.8]} 25... Rd8+ {[%clk 0:04:11]} 26. Kc1 {[%clk 0:03:25.5]}
26... Rd4 {[%clk 0:04:09.9]} 0-1

[Event "Live Chess"]
[Site "Chess.com"]
[Date "2024.06.01"]
[Round "-"]
[White "ogpin"]
[Black "nitrofish07"]
[Result "1-0"]
[WhiteElo "2230"]
[BlackElo "2090"]
[TimeControl "300"]
[EndTime "13:56:01 PDT"]
[Termination "ogpin won by resignation"]

1. a4 {[%clk 0:04:58.6]} 1... a5 {[%clk 0:04:58.6]} 2. Ra3 {[%clk 0:04:58.5]}
2... Ra6 {[%clk 0:04:57.8]} 3. g3 {[%clk 0:04:54.6]} 3... g6 {[%clk 0:04:55.6]}
4. Bg2 {[%clk 0:04:54.2]} 4... Bg7 {[%clk 0:04:54.6]} 5. Nf3 {[%clk 0:04:52.9]}
5... Nf6 {[%clk 0:04:54.3]} 6. b3 {[%clk 0:04:51]} 6... O-O {[%clk 0:04:53.4]}
7. Bb2 {[%clk 0:04:50.2]} 7... d6 {[%clk 0:04:50.9]} 8. O-O {[%clk 0:04:47.3]}
8... e5 {[%clk 0:04:48]} 9. d3 {[%clk 0:04:46.4]} 9... Nc6 {[%clk 0:04:42]} 10.
Nc3 {[%clk 0:04:38.3]} 10... Be6 {[%clk 0:04:35.3]} 11. Ng5 {[%clk 0:04:33.6]}
11... Qd7 {[%clk 0:04:28.1]} 12. Nxe6 {[%clk 0:04:32.2]} 12... fxe6 {[%clk
0:04:28]} 13. e4 {[%clk 0:04:25.1]} 13... Raa8 {[%clk 0:04:21.7]} 14. h3 {[%clk
0:04:23.8]} 14... b6 {[%clk 0:04:18.6]} 15. Ra1 {[%clk 0:04:18.5]} 15... Rae8
{[%clk 0:04:16.1]} 16. Qd2 {[%clk 0:04:14.9]} 16... Nh5 {[%clk 0:04:12.5]} 17.
Rae1 {[%clk 0:04:06.3]} 17... Nd4 {[%clk 0:04:08.5]} 18. Ne2 {[%clk 0:03:50.6]}
18... Nf3+ {[%clk 0:03:56.4]} 19. Bxf3 {[%clk 0:03:49.9]} 19... Rxf3 {[%clk
0:03:56]} 20. Kg2 {[%clk 0:03:49.8]} 20... Ref8 {[%clk 0:03:43.6]} 21. Ng1
{[%clk 0:03:48.8]} 21... R3f7 {[%clk 0:03:28.5]} 22. d4 {[%clk 0:03:47.7]} 22...
exd4 {[%clk 0:03:25.2]} 23. Bxd4 {[%clk 0:03:47.6]} 23... Bxd4 {[%clk
0:03:22.4]} 24. Qxd4 {[%clk 0:03:47.5]} 24... e5 {[%clk 0:03:21.2]} 25. Qd5
{[%clk 0:03:43.8]} 25... Qe7 {[%clk 0:03:09.9]} 26. Re3 {[%clk 0:03:35.9]} 26...
Qg5 {[%clk 0:03:06.6]} 27. Rf3 {[%clk 0:03:31.8]} 27... Nf4+ {[%clk 0:02:51.2]}
28. Rxf4 {[%clk 0:03:30.7]} 28... exf4 {[%clk 0:02:50.2]} 29. Qxg5 {[%clk
0:03:29.5]} 1-0

[Event "Live Chess"]
[Site "Chess.com"]
[Date "2024.06.01"]
[Round "-"]
[White "AlexanderMatlak"]
[Black "CCGoodKnightRookie"]
[Result "0-1"]
[WhiteElo "2440"]
[BlackElo "2285"]
[TimeControl "300"]
[EndTime "13:56:06 PDT"]
[Termination "CCGoodKnightRookie won on time"]

1. c4 {[%clk 0:04:57.9]} 1... c5 {[%clk 0:04:58.2]} 2. Nf3 {[%clk 0:04:56.1]}
2... Nf6 {[%clk 0:04:57]} 3. Nc3 {[%clk 0:04:55.4]} 3... Nc6 {[%clk 0:04:56.3]}
4. g3 {[%clk 0:04:54.9]} 4... e6 {[%clk 0:04:55.7]} 5. Bg2 {[%clk 0:04:54.3]}
5... d5 {[%clk 0:04:55.2]} 6. cxd5 {[%clk 0:04:53.4]} 6... exd5 {[%clk
0:04:54.6]} 7. d4 {[%clk 0:04:52.9]} 7... cxd4 {[%clk 0:04:54.2]} 8. Nxd4 {[%clk
0:04:52.7]} 8... Bc5 {[%clk 0:04:53.7]} 9. Nb3 {[%clk 0:04:51.5]} 9... Bb6
{[%clk 0:04:52.9]} 10. O-O {[%clk 0:04:50.7]} 10... d4 {[%clk 0:04:52.4]} 11.
Na4 {[%clk 0:04:49.2]} 11... O-O {[%clk 0:04:52.1]} 12. Bd2 {[%clk 0:04:37.1]}
12... Re8 {[%clk 0:04:48.7]} 13. h3 {[%clk 0:04:25.6]} 13... Ne4 {[%clk
0:04:34]} 14. Rc1 {[%clk 0:04:18]} 14... Bf5 {[%clk 0:03:52]} 15. Nac5 {[%clk
0:04:11.4]} 15... Nxd2 {[%clk 0:03:44.4]} 16. Qxd2 {[%clk 0:04:08.2]} 16... Qe7
{[%clk 0:03:35.5]} 17. Nxb7 {[%clk 0:04:02.6]} 17... Nb4 {[%clk 0:03:17.8]} 18.
Nxd4 {[%clk 0:03:43.1]} 18... Bxd4 {[%clk 0:03:13.5]} 19. Qxd4 {[%clk 0:03:43]}
19... Nxa2 {[%clk 0:03:10.6]} 20. Ra1 {[%clk 0:03:22.8]} 20... Nb4 {[%clk
0:03:05.2]} 21. Nd6 {[%clk 0:03:04.1]} 21... Rad8 {[%clk 0:02:36.5]} 22. Nxf5
{[%clk 0:02:57.9]} 22... Rxd4 {[%clk 0:02:34.6]} 23. Nxe7+ {[%clk 0:02:53.1]}
23... Rxe7 {[%clk 0:02:34.5]} 24. e3 {[%clk 0:02:47]} 24... Rd2 {[%clk 0:02:30]}
25. Rfd1 {[%clk 0:02:42.6]} 25... Rxd1+ {[%clk 0:02:21.6]} 26. Rxd1 {[%clk
0:02:40]} 26... g6 {[%clk 0:02:21.2]} 27. Rd8+ {[%clk 0:02:29.6]} 27... Kg7
{[%clk 0:02:19.6]} 28. Rb8 {[%clk 0:02:29.2]} 28... Nd3 {[%clk 0:02:14.9]} 29.
b4 {[%clk 0:02:15.6]} 29... Rc7 {[%clk 0:02:03]} 30. Be4 {[%clk 0:01:29.2]}
30... Ne5 {[%clk 0:01:55.2]} 31. b5 {[%clk 0:01:23.6]} 31... Nc4 {[%clk
0:01:53.5]} 32. Rb7 {[%clk 0:01:09.8]} 32... Rxb7 {[%clk 0:01:35.5]} 33. Bxb7
{[%clk 0:01:09.7]} 33... Kf6 {[%clk 0:01:29.4]} 34. Kf1 {[%clk 0:01:00.6]} 34...
Ke5 {[%clk 0:01:27.9]} 35. Ke2 {[%clk 0:00:59]} 35... Kd6 {[%clk 0:01:25.2]} 36.
Kd3 {[%clk 0:00:47.5]} 36... Kc5 {[%clk 0:01:23.4]} 37. f4 {[%clk 0:00:20.9]}
37... Nd6 {[%clk 0:01:17.9]} 38. Bc6 {[%clk 0:00:17.8]} 38... Nxb5 {[%clk
0:01:15.6]} 39. Be8 {[%clk 0:00:17.4]} 39... Nd6 {[%clk 0:01:14]} 40. Ba4 {[%clk
0:00:15.6]} 40... a5 {[%clk 0:01:09]} 41. e4 {[%clk 0:00:14.2]} 41... Kb4 {[%clk
0:01:07.9]} 42. Bc6 {[%clk 0:00:11.1]} 42... a4 {[%clk 0:01:07.2]} 43. e5 {[%clk
0:00:10.6]} 43... Nb5 {[%clk 0:01:01.9]} 44. Bd5 {[%clk 0:00:09.6]} 44... a3
{[%clk 0:00:59.9]} 45. Bxf7 {[%clk 0:00:08.6]} 45... Kc5 {[%clk 0:00:57.5]} 46.
Ba2 {[%clk 0:00:07.3]} 46... Kc6 {[%clk 0:00:52.1]} 47. g4 {[%clk 0:00:06.7]}
47... Kc5 {[%clk 0:00:51.3]} 48. f5 {[%clk 0:00:06.1]} 48... gxf5 {[%clk
0:00:50.2]} 49. gxf5 {[%clk 0:00:06]} 49... Kc6 {[%clk 0:00:47]} 50. f6 {[%clk
0:00:05.5]} 50... Kd7 {[%clk 0:00:45.4]} 51. e6+ {[%clk 0:00:05]} 51... Ke8
{[%clk 0:00:43.9]} 52. e7 {[%clk 0:00:04.3]} 52... Nd6 {[%clk 0:00:39.7]} 53.
Bb3 {[%clk 0:00:03.5]} 53... Nf5 {[%clk 0:00:35.8]} 54. Ke4 {[%clk 0:00:02.4]}
54... Nh6 {[%clk 0:00:32.5]} 55. Ke5 {[%clk 0:00:01.8]} 55... Nf7+ {[%clk
0:00:31.3]} 56. Ke6 {[%clk 0:00:01.2]} 56... Ng5+ {[%clk 0:00:27.7]} 57. Kd6
{[%clk 0:00:00.8]} 57... Ne4+ {[%clk 0:00:26.7]} 0-1

[Event "Live Chess"]
[Site "Chess.com"]
[Date "2024.06.01"]
[Round "-"]
[White "koekoekoe"]
[Black "GEMdzq"]
[Result "0-1"]
[WhiteElo "2038"]
[BlackElo "2323"]
[TimeControl "300"]
[EndTime "13:56:08 PDT"]
[Termination "GEMdzq won by resignation"]

1. d4 {[%clk 0:04:59.7]} 1... Nf6 {[%clk 0:04:58.3]} 2. Bf4 {[%clk 0:04:59]}
2... e6 {[%clk 0:04:56.5]} 3. e3 {[%clk 0:04:58.5]} 3... c5 {[%clk 0:04:55.5]}
4. c3 {[%clk 0:04:57.7]} 4... Qb6 {[%clk 0:04:50.8]} 5. Qb3 {[%clk 0:04:56.5]}
5... Nd5 {[%clk 0:04:49]} 6. Bg3 {[%clk 0:04:52.8]} 6... cxd4 {[%clk 0:04:47.6]}
7. exd4 {[%clk 0:04:49.9]} 7... Be7 {[%clk 0:04:46.7]} 8. Nd2 {[%clk 0:04:47.5]}
8... O-O {[%clk 0:04:33.9]} 9. Ngf3 {[%clk 0:04:46.2]} 9... f5 {[%clk
0:04:31.6]} 10. Bc4 {[%clk 0:04:43.4]} 10... Qxb3 {[%clk 0:04:28.8]} 11. Bxb3
{[%clk 0:04:37.1]} 11... f4 {[%clk 0:04:20.7]} 12. Bh4 {[%clk 0:04:22.4]} 12...
Bxh4 {[%clk 0:04:17.5]} 13. Nxh4 {[%clk 0:04:22.3]} 13... Nc6 {[%clk 0:04:03.9]}
14. Bxd5 {[%clk 0:04:11.5]} 14... exd5 {[%clk 0:04:03.8]} 15. O-O-O {[%clk
0:04:04.7]} 15... d6 {[%clk 0:04:01.4]} 16. Rde1 {[%clk 0:03:57.8]} 16... Bd7
{[%clk 0:03:56.2]} 17. Nhf3 {[%clk 0:03:55.7]} 17... b5 {[%clk 0:03:53.1]} 18.
Re2 {[%clk 0:03:42.3]} 18... a5 {[%clk 0:03:51.3]} 19. Rhe1 {[%clk 0:03:41.5]}
19... a4 {[%clk 0:03:44.8]} 20. Ng5 {[%clk 0:03:34.1]} 20... b4 {[%clk
0:03:40.7]} 21. Kc2 {[%clk 0:03:19.1]} 21... Rac8 {[%clk 0:03:36]} 22. a3 {[%clk
0:03:00.9]} 22... Nxd4+ {[%clk 0:03:34.2]} 23. Kd3 {[%clk 0:02:59.2]} 23... Nxe2
{[%clk 0:03:30.1]} 24. Rxe2 {[%clk 0:02:59.1]} 24... Bb5+ {[%clk 0:03:28.9]} 25.
c4 {[%clk 0:02:57.6]} 25... dxc4+ {[%clk 0:03:27]} 26. Kd4 {[%clk 0:02:52.7]}
26... c3 {[%clk 0:03:26]} 27. Re7 {[%clk 0:02:42.9]} 27... cxd2 {[%clk
0:03:21.8]} 0-1

[Event "Live Chess"]
[Site "Chess.com"]
[Date "2024.06.01"]
[Round "-"]
[White "f4nomore"]
[Black "upoe610"]
[Result "0-1"]
[WhiteElo "1213"]
[BlackElo "2234"]
[TimeControl "300"]
[EndTime "13:56:21 PDT"]
[Termination "upoe610 won by resignation"]

1. Nc3 {[%clk 0:04:54.7]} 1... e5 {[%clk 0:04:58.4]} 2. e3 {[%clk 0:04:53.1]}
2... d5 {[%clk 0:04:57.2]} 3. d3 {[%clk 0:04:51.9]} 3... Nf6 {[%clk 0:04:56.5]}
4. Be2 {[%clk 0:04:50]} 4... Bd6 {[%clk 0:04:56]} 5. Nf3 {[%clk 0:04:47.8]} 5...
Nc6 {[%clk 0:04:54.9]} 6. O-O {[%clk 0:04:45.3]} 6... h6 {[%clk 0:04:52.9]} 7.
Nb5 {[%clk 0:04:43.9]} 7... Bc5 {[%clk 0:04:49.4]} 8. d4 {[%clk 0:04:40.9]} 8...
exd4 {[%clk 0:04:48.6]} 9. Nbxd4 {[%clk 0:04:38.6]} 9... O-O {[%clk 0:04:44.3]}
10. Nxc6 {[%clk 0:04:36.6]} 10... bxc6 {[%clk 0:04:43.1]} 11. c3 {[%clk
0:04:34.6]} 11... Ne4 {[%clk 0:04:41.1]} 12. Nd4 {[%clk 0:04:30.7]} 12... Bd7
{[%clk 0:04:38.5]} 13. f3 {[%clk 0:04:27.8]} 13... Nd6 {[%clk 0:04:34.4]} 14.
Qc2 {[%clk 0:04:23.8]} 14... Bxd4 {[%clk 0:04:31.4]} 15. exd4 {[%clk 0:04:22.1]}
15... Bf5 {[%clk 0:04:30.1]} 16. Bd3 {[%clk 0:04:20.2]} 16... Bxd3 {[%clk
0:04:28.5]} 17. Qxd3 {[%clk 0:04:18.4]} 17... Nc4 {[%clk 0:04:27.7]} 18. b3
{[%clk 0:04:14.9]} 18... Nd6 {[%clk 0:04:25.3]} 19. Qe2 {[%clk 0:03:59.8]} 19...
Re8 {[%clk 0:04:24.1]} 20. Qf2 {[%clk 0:03:58.8]} 20... Qf6 {[%clk 0:04:23.1]}
21. Qg3 {[%clk 0:03:55.2]} 21... Nf5 {[%clk 0:04:19.6]} 22. Qxc7 {[%clk
0:03:50.3]} 22... Re2 {[%clk 0:04:17.6]} 23. Ba3 {[%clk 0:03:20.7]} 23... Qg6
{[%clk 0:04:14.3]} 24. Rf2 {[%clk 0:03:16.1]} 24... Rxf2 {[%clk 0:04:12.3]} 25.
Kxf2 {[%clk 0:03:13.7]} 25... Nh4 {[%clk 0:04:11.9]} 26. g3 {[%clk 0:03:10.4]}
26... Qc2+ {[%clk 0:04:10.5]} 27. Kf1 {[%clk 0:02:55.6]} 27... Qg2+ {[%clk
0:04:05.1]} 28. Ke1 {[%clk 0:02:49.9]} 28... Nxf3+ {[%clk 0:04:05]} 0-1

[Event "Live Chess"]
[Site "Chess.com"]
[Date "2024.06.01"]
[Round "-"]
[White "CarmelJane"]
[Black "JohanKjeldahl"]
[Result "1-0"]
[WhiteElo "2089"]
[BlackElo "1856"]
[TimeControl "300"]
[EndTime "13:56:27 PDT"]
[Termination "CarmelJane won by resignation"]

1. d4 {[%clk 0:04:57.7]} 1... Nf6 {[%clk 0:04:57.9]} 2. Nc3 {[%clk 0:04:56.4]}
2... d5 {[%clk 0:04:54.6]} 3. Bf4 {[%clk 0:04:55.8]} 3... c6 {[%clk 0:04:53.1]}
4. e3 {[%clk 0:04:54.3]} 4... g6 {[%clk 0:04:52.2]} 5. h4 {[%clk 0:04:47.9]}
5... Bg7 {[%clk 0:04:51.3]} 6. Be2 {[%clk 0:04:37.9]} 6... h5 {[%clk 0:04:48]}
7. Nf3 {[%clk 0:04:35.9]} 7... Bf5 {[%clk 0:04:45.8]} 8. Ne5 {[%clk 0:04:18.5]}
8... Nbd7 {[%clk 0:04:44.1]} 9. f3 {[%clk 0:04:17.4]} 9... Qb6 {[%clk
0:04:29.1]} 10. Na4 {[%clk 0:04:07.9]} 10... Qa5+ {[%clk 0:04:24.3]} 11. c3
{[%clk 0:04:07.5]} 11... b5 {[%clk 0:04:19.7]} 12. Nc5 {[%clk 0:04:00.4]} 12...
Nxc5 {[%clk 0:04:17.6]} 13. dxc5 {[%clk 0:04:00]} 13... Nd7 {[%clk 0:04:15.6]}
14. Nxc6 {[%clk 0:03:54.1]} 14... Qa6 {[%clk 0:04:06.9]} 15. Nd4 {[%clk
0:03:49.8]} 15... e5 {[%clk 0:03:57]} 16. Nxb5 {[%clk 0:03:30.5]} 1-0